fUST/lending_fUST_20250830
["ID","MTS","AMOUNT","RATE_DAILY","PERIOD"]
[382154506,1756524287872,362.27790416,0.000199,2]
[382154508,1756524461346,308.43957711,0.000199,2]
[382154509,1756524470258,541.5531023,0.00024255,2]
[382154510,1756524493594,500.0,0.00024255,2]
[382154511,1756524518771,-177.01210145,0.00024573,2]
[382154512,1756524518802,-300.0,0.00024672,2]
[382154513,1756524518831,-212.6458907,0.00024673,2]
[382154514,1756524519216,-4996.94717056,0.00024673,2]
[382154515,1756524519291,-10000.01,0.00024673,2]
[382154516,1756524519447,-4435.67151093,0.00024673,2]
[382154517,1756524519471,-1128.66697814,0.00024673,2]
[382154518,1756524519580,-890.44,0.0002469,3]
[382154519,1756524519613,-445.22,0.0002469,3]
[382154520,1756524519643,-222.61,0.0002469,3]
[382154521,1756524519673,-667.83,0.0002469,3]
[382154522,1756524519704,-1200.0,0.00024698,2]
[382154523,1756524519734,-500.0,0.00024699,2]
[382154524,1756524519864,-2147.81,0.00024699,2]
[382154525,1756524519879,-10000.01,0.00024699,2]
[382154526,1756524519911,-10000.01,0.00024699,2]
[382154527,1756524520036,-10000.01,0.00024699,2]
[382154528,1756524520144,-10000.01,0.00024699,2]
[382154529,1756524520262,-2147.86,0.00024699,2]
[382154530,1756524520286,-5704.29,0.00024699,2]
[382154531,1756524520372,-511.45762353,0.00024699,2]
[382154532,1756524520401,-500.0,0.00024699,2]
[382154533,1756524520429,-500.0,0.00024699,2]
[382154534,1756524520458,-500.0,0.00024699,2]
[382154535,1756524520486,-500.0,0.00024699,2]
[382154536,1756524520517,-500.0,0.00024699,2]
[382154537,1756524520548,-500.0,0.00024699,2]
[382154538,1756524520580,-500.0,0.00024699,2]
[382154539,1756524520609,-500.0,0.00024699,2]
[382154540,1756524520639,-477.09475294,0.00024699,2]
[382154541,1756524520724,-22.90524706,0.00024699,2]
[382154542,1756524520756,-500.0,0.00024699,2]
[382154543,1756524520784,-500.0,0.00024699,2]
[382154544,1756524520812,-515.60212652,0.00024699,2]
[382154545,1756524520841,-500.0,0.00024699,2]
[382154546,1756524520874,-500.0,0.00024699,2]
[382154547,1756524521082,-500.0,0.00024699,2]
[382154548,1756524521112,-500.0,0.00024699,2]
[382154549,1756524521141,-343.83608839,0.00024699,2]
[382154550,1756524521169,-500.0,0.00024699,2]
[382154551,1756524521198,-500.0,0.00024699,2]
[382154552,1756524521681,-500.0,0.00024699,2]
[382154553,1756524521711,-500.0,0.00024699,2]
[382154554,1756524521739,-500.0,0.00024699,2]
[382154555,1756524521769,-261.24880089,0.00024699,2]
[382154556,1756524521800,-500.0,0.00024699,2]
[382154557,1756524521828,-500.0,0.00024699,2]
[382154558,1756524521861,-500.0,0.00024699,2]
[382154559,1756524521888,-500.0,0.00024699,2]
[382154560,1756524521916,-500.0,0.00024699,2]
[382154561,1756524521945,-500.0,0.00024699,2]
[382154562,1756524522030,-500.0,0.00024699,2]
[382154563,1756524522057,-476.05215068,0.00024699,2]
[382154564,1756524522085,-384.93526668,0.00024699,2]
[382154565,1756524522113,-523.09060869,0.00024699,2]
[382154566,1756524522141,-500.0,0.00024699,2]
[382154567,1756524522168,-500.0,0.00024699,2]
[382154568,1756524522198,-500.0,0.00024699,2]
[382154569,1756524522226,-500.0,0.00024699,2]
[382154570,1756524522254,-500.0,0.00024699,2]
[382154571,1756524522285,-500.0,0.00024699,2]
[382154572,1756524522410,-500.0,0.00024699,2]
[382154573,1756524522440,-568.13478962,0.00024699,2]
[382154574,1756524522469,-500.0,0.00024699,2]
[382154575,1756524522497,-500.0,0.00024699,2]
[382154576,1756524522527,-260.45360852,0.00024699,2]
[382154577,1756524522556,-500.0,0.00024699,2]
[382154578,1756524522586,-500.0,0.00024699,2]
[382154579,1756524522630,-500.0,0.00024699,2]
[382154580,1756524522657,-500.0,0.00024699,2]
[382154581,1756524522684,-500.0,0.00024699,2]
[382154582,1756524523944,-122.49593125,0.00024699,2]
[382154583,1756524523958,-377.50406875,0.00024699,2]
[382154584,1756524523968,-122.49593125,0.00024699,2]
[382154585,1756524523983,-377.50406875,0.00024699,2]
[382154586,1756524523992,-122.49593125,0.00024699,2]
[382154587,1756524524007,-342.83320372,0.00024699,2]
[382154588,1756524525775,72152.42125767,0.0002301,5]
[382154589,1756524534019,4090.9334343,0.0002379,2]
[382154590,1756524538156,5000.0,0.00024255,2]
[382154591,1756524599771,799.77757428,0.00023724,2]
[382154592,1756524602019,3195.91118681,0.00023724,2]
[382154643,1756524634691,367.45542508,0.000199,2]
[382154646,1756524638115,167.007051,0.00013699,2]
[382154671,1756524638531,-5000.0,0.00024426,2]
[382154673,1756524638541,-354.83337799,0.00024673,2]
[382154676,1756524638549,-411.80333135,0.00024673,2]
[382154678,1756524638558,-300.0,0.00024689,2]
[382154680,1756524638567,-1200.0,0.00024689,2]
[382154682,1756524638576,-1017.98,0.0002469,10]
[382154684,1756524638586,-1051.92,0.0002469,10]
[382154686,1756524638595,-258.06608113,0.00024699,2]
[382154688,1756524638604,-34.67086503,0.00024699,2]
[382154690,1756524638614,-500.0,0.00024699,2]
[382154692,1756524638623,-550.94522239,0.00024699,2]
[382154694,1756524638632,-500.0,0.00024699,2]
[382154696,1756524638641,-500.0,0.00024699,2]
[382154698,1756524638650,-500.0,0.00024699,2]
[382154700,1756524638659,-500.0,0.00024699,2]
[382154703,1756524638669,-225.71625667,0.00024699,2]
[382154706,1756524638678,-500.0,0.00024699,2]
[382154709,1756524638687,-500.0,0.00024699,2]
[382154712,1756524638697,-500.0,0.00024699,2]
[382154715,1756524638706,-500.0,0.00024699,2]
[382154718,1756524638715,-564.02881779,0.00024699,2]
[382154721,1756524638724,-500.0,0.00024699,2]
[382154724,1756524638734,-500.0,0.00024699,2]
[382154728,1756524638744,-500.0,0.00024699,2]
[382154730,1756524638753,-500.0,0.00024699,2]
[382154732,1756524638762,-500.0,0.00024699,2]
[382154734,1756524638772,-500.0,0.00024699,2]
[382154736,1756524638781,-500.0,0.00024699,2]
[382154738,1756524638790,-500.0,0.00024699,2]
[382154740,1756524638799,-600.0,0.00024699,2]
[382154742,1756524638808,-147014.31734441,0.000247,2]
[382154744,1756524638820,-31137.26762004,0.000247,2]
[382154752,1756524638883,-3430.85880594,0.000247,2]
[382154754,1756524638897,-4800.0,0.000247,2]
[382154756,1756524638908,-7862.82614194,0.000247,2]
[382154758,1756524638919,-3488.32236836,0.000247,2]
[382154761,1756524638932,-12037.66927369,0.000247,2]
[382154763,1756524638943,-885.96677516,0.000247,2]
[382154765,1756524638954,-3157.4254304,0.000247,2]
[382154773,1756524639020,-156185.34624006,0.000247,2]
[382154775,1756524639031,-500.0,0.00024773,2]
[382154777,1756524639041,-277.88176164,0.00024773,2]
[382154779,1756524639050,-194.113,0.0002479,8]
[382154781,1756524639059,-2496.24727049,0.00024797,2]
[382154784,1756524639069,-58520.7753284,0.00024797,2]
[382154785,1756524639078,-500.0,0.00024799,14]
[382154787,1756524639088,-200.0,0.00024799,14]
[382154789,1756524639098,-300.0,0.00024799,17]
[382154791,1756524639108,-151.81389607,0.00024799,8]
[382154794,1756524639118,-196.94548854,0.00024799,8]
[382154795,1756524639127,-151.0,0.00024799,8]
[382154797,1756524639136,-151.0,0.00024799,8]
[382154799,1756524639145,-151.0,0.00024799,8]
[382154801,1756524639154,-151.0,0.00024799,8]
[382154804,1756524639164,-151.0,0.00024799,8]
[382154806,1756524639173,-152.05890476,0.00024799,8]
[382154808,1756524639182,-151.95403363,0.00024799,8]
[382154810,1756524639191,-151.0,0.00024799,8]
[382154812,1756524639201,-151.0,0.00024799,8]
[382154814,1756524639210,-804.3132666,0.000248,2]
[382154816,1756524639221,-500.0,0.00024871,2]
[382154818,1756524639230,-151.0,0.00024871,2]
[382154820,1756524639239,-154.06718767,0.00024871,2]
[382154822,1756524639249,-151.0,0.00024871,2]
[382154824,1756524639257,-153.63869284,0.00024871,2]
[382154826,1756524639267,-151.0,0.00024871,2]
[382154828,1756524639276,-500.31819818,0.00024873,2]
[382154830,1756524639285,-501.60924757,0.00024873,2]
[382154832,1756524639294,-506.84425262,0.00024873,2]
[382154834,1756524639304,-502.80445779,0.00024873,2]
[382154836,1756524639313,-500.0,0.00024873,2]
[382154838,1756524639323,-501.74279141,0.00024873,2]
[382154840,1756524639332,-500.4491363,0.00024873,2]
[382154842,1756524639341,-500.0,0.00024873,2]
[382154844,1756524639352,-500.0,0.00024873,2]
[382154846,1756524639361,-500.0,0.00024873,2]
[382154848,1756524639370,-500.0,0.00024873,2]
[382154850,1756524639380,-500.0,0.00024873,2]
[382154852,1756524639390,-520.22474796,0.00024873,2]
[382154854,1756524639400,-500.58297378,0.00024873,2]
[382154856,1756524639409,-234.946718,0.00024873,7]
[382154858,1756524639419,-234.946718,0.00024873,7]
[382154860,1756524639428,-234.946718,0.00024873,7]
[382154862,1756524639439,-234.946718,0.00024873,7]
[382154864,1756524639448,-494.4818208,0.0002488,2]
[382154866,1756524639458,-348.73,0.00024886,9]
[382154868,1756524639467,-26766.89229966,0.00024888,2]
[382160899,1756524702922,5469.85876283,0.00023911,2]
[382160903,1756524702944,4259.85636547,0.00023911,2]
[382161757,1756524779229,1000.0,0.00023846,2]
[382161758,1756524805563,260.6053345,0.00023862,2]
[382161759,1756524812557,318.4613684,0.000199,2]
[382161760,1756524994714,275.9511536,0.000199,2]
[382161761,1756525049436,3885.13577803,0.00024001,2]
[382161762,1756525049459,1114.86422197,0.00024001,2]
[382161763,1756525073939,5000.0,0.00024001,2]
[382161764,1756525083319,177.10791538,0.00023568,2]
[382161765,1756525174233,217.03610998,0.000199,2]
[382161766,1756525174687,217.03610998,0.00022985,2]
[382161768,1756525303528,3273.96564269,0.00024001,2]
[382161769,1756525303552,1726.03435731,0.00024001,2]
[382161770,1756525325811,5000.0,0.00024001,2]
[382161771,1756525349765,3273.97564269,0.00024001,2]
[382161772,1756525349789,1726.02435731,0.00024001,2]
[382161773,1756525354398,380.07175724,0.000199,2]
[382161774,1756525531195,329.39552292,0.000199,2]
[382161775,1756525561222,167.007051,0.00013699,2]
[382161777,1756525573750,5000.0,0.00024001,2]
[382161778,1756525595862,168.0,0.00023834,2]
[382161779,1756525596385,2229.51131153,0.00024001,2]
[382161780,1756525596409,2770.48868847,0.00024001,2]
[382161781,1756525621520,5000.0,0.00024001,2]
[382161782,1756525644810,2229.52131153,0.00024001,2]
[382161783,1756525644834,2770.47868847,0.00024001,2]
[382161784,1756525668502,5000.0,0.00024001,2]
[382161785,1756525691874,5000.0,0.00024001,2]
[382161786,1756525712211,284.94950528,0.000199,2]
[382161787,1756525714961,5000.0,0.00024001,2]
[382161788,1756525737907,3958.4468977,0.00024001,2]
[382161789,1756525798153,151.0,0.00027397,120]
[382161790,1756525811852,1397.63683894,0.00024001,2]
[382161823,1756525831847,-168.0,0.00024282,2]
[382161825,1756525831857,-131.22480186,0.00024343,2]
[382161831,1756525831899,-36.77519814,0.00024343,2]
[382161832,1756525831910,-555.38387422,0.0002449,2]
[382161834,1756525831920,-300.0,0.00024521,2]
[382161837,1756525831930,-300.0,0.00024521,2]
[382161839,1756525831939,-300.0,0.00024521,2]
[382161841,1756525831950,-300.0,0.00024521,2]
[382161842,1756525831959,-1200.0,0.00024521,2]
[382161845,1756525831970,-6715.23587916,0.00024521,2]
[382161846,1756525831979,-1504.81591753,0.00024522,2]
[382161850,1756525832002,-461.08152711,0.00024522,2]
[382161978,1756525837755,-1964.65809029,0.00024522,2]
[382161980,1756525837766,-1041.5700025,0.00024522,2]
[382161985,1756525837862,-8735.40490233,0.00024522,2]
[382161986,1756525837871,-168.0,0.00024532,2]
[382161988,1756525837882,-2538.06669564,0.00024536,2]
[382161990,1756525837891,-500.31819818,0.00024573,2]
[382161992,1756525837900,-500.0,0.00024573,2]
[382161993,1756525837909,-501.31195499,0.00024573,2]
[382161994,1756525837919,-500.0,0.00024573,2]
[382161995,1756525837928,-500.0,0.00024573,2]
[382161996,1756525837939,-500.0,0.00024573,2]
[382161997,1756525837949,-500.0,0.00024573,2]
[382161998,1756525837960,-500.0,0.00024573,2]
[382161999,1756525837970,-500.0,0.00024573,2]
[382162000,1756525837979,-500.0,0.00024573,2]
[382162001,1756525837988,-500.0,0.00024573,2]
[382162002,1756525837997,-500.0,0.00024573,2]
[382162003,1756525838008,-500.0,0.00024573,2]
[382162004,1756525838017,-502.20116784,0.00024573,2]
[382162005,1756525838026,-500.0,0.00024573,2]
[382162006,1756525838036,-506.84425262,0.00024573,2]
[382162007,1756525838046,-500.0,0.00024573,2]
[382162008,1756525838055,-500.0,0.00024573,2]
[382162009,1756525838065,-501.21865721,0.00024573,2]
[382162010,1756525838075,-501.19331251,0.00024573,2]
[382162011,1756525838084,-500.0,0.00024573,2]
[382162012,1756525838094,-502.82551765,0.00024573,2]
[382162013,1756525838104,-500.0,0.00024573,2]
[382162014,1756525838113,-501.60924757,0.00024573,2]
[382162015,1756525838123,-503.92401456,0.00024573,2]
[382162016,1756525838133,-500.0,0.00024585,2]
[382162017,1756525838143,-519.08760809,0.00024585,2]
[382162018,1756525838152,-519.42,0.0002459,3]
[382162019,1756525838162,-259.71,0.0002459,3]
[382162020,1756525838171,-446.44,0.0002459,3]
[382162021,1756525838181,-223.22,0.0002459,3]
[382162022,1756525838191,-669.66,0.0002459,3]
[382162023,1756525838201,-967.69,0.0002459,10]
[382162024,1756525838211,-1232.19,0.0002459,10]
[382162025,1756525838221,-1026.83,0.0002459,10]
[382162026,1756525838231,-500.0,0.00024599,2]
[382162027,1756525838241,-618.2254242,0.00024599,2]
[382162028,1756525838251,-192.32289854,0.00024599,2]
[382162029,1756525838261,-195.6059565,0.00024599,2]
[382162030,1756525838271,-219.56135008,0.00024599,2]
[382162031,1756525838280,-492.0116303,0.00024599,2]
[382162032,1756525838291,-500.0,0.00024599,2]
[382162033,1756525838300,-229.7927544,0.00024599,2]
[382162034,1756525838311,-251.83065181,0.00024599,2]
[382162035,1756525838321,-400.0,0.00024599,2]
[382162036,1756525838331,-500.0,0.00024599,2]
[382162037,1756525838342,-500.0,0.00024599,2]
[382162038,1756525838351,-500.0,0.00024599,2]
[382162039,1756525838363,-367.96913567,0.00024599,2]
[382162040,1756525838372,-500.0,0.00024599,2]
[382162041,1756525838382,-515.60212652,0.00024599,2]
[382162042,1756525838392,-500.0,0.00024599,2]
[382162043,1756525838402,-500.0,0.00024599,2]
[382162044,1756525838412,-197.51770423,0.00024599,2]
[382162045,1756525838423,-525.92572483,0.00024599,2]
[382162046,1756525838436,-500.0,0.00024599,2]
[382162047,1756525838447,-500.0,0.00024599,2]
[382162048,1756525838457,-506.85846785,0.00024599,2]
[382162049,1756525838468,-500.0,0.00024599,2]
[382162050,1756525838478,-528.7906949,0.00024599,2]
[382162051,1756525838491,-500.0,0.00024599,2]
[382162052,1756525838500,-500.0,0.00024599,2]
[382162053,1756525838510,-518.69307432,0.00024599,2]
[382162054,1756525838520,-500.0,0.00024599,2]
[382162055,1756525838530,-500.0,0.00024599,2]
[382162056,1756525838540,-502.46363489,0.00024599,2]
[382162057,1756525838549,-174.16038456,0.00024599,2]
[382162058,1756525838559,-500.0,0.00024599,2]
[382162059,1756525838568,-500.0,0.00024599,2]
[382162060,1756525838579,-500.0,0.00024599,2]
[382162061,1756525838589,-500.0,0.00024599,2]
[382162062,1756525838599,-500.0,0.00024599,2]
[382162063,1756525838609,-500.0,0.00024599,2]
[382162064,1756525838618,-265.11745425,0.00024599,2]
[382162065,1756525838628,-500.0,0.00024599,2]
[382162066,1756525838639,-500.0,0.00024599,2]
[382162067,1756525838650,-307.80212765,0.00024599,2]
[382162068,1756525838661,-348.19377324,0.00024599,2]
[382162069,1756525838671,-367.01008358,0.00024599,2]
[382162070,1756525838680,-500.0,0.00024599,2]
[382162071,1756525838690,-352.23734638,0.00024599,2]
[382162072,1756525838699,-225.65821769,0.00024599,2]
[382162073,1756525838708,-370000.0,0.000246,2]
[382162074,1756525838719,-2538.06669562,0.00024622,2]
[382162075,1756525838728,-168.0,0.00024636,2]
[382162076,1756525838738,-2000.0,0.00024672,15]
[382162077,1756525838747,-774.02464851,0.00024672,15]
[382162131,1756525878376,151.0,0.00027397,120]
[382162132,1756525892204,299.09108128,0.000199,2]
[382162135,1756525974112,278.0,0.00027397,120]
[382162136,1756525988003,5925.0045774,0.00023872,2]
[382162139,1756526006804,156.3632007,0.00023755,2]
[382162141,1756526058068,259.21227044,0.000199,2]
[382162142,1756526065790,151.0,0.00027397,120]
[382162143,1756526223356,224.6506344,0.000199,2]
[382162144,1756526401376,251.86109232,0.000199,2]
[382162145,1756526578178,218.27961336,0.000199,2]
[382162146,1756526598452,167.007051,0.00013699,2]
[382162148,1756526758711,378.35132984,0.000199,2]
[382162149,1756526894787,250.0,0.000238,2]
[382162150,1756526934744,277.45764184,0.000199,2]
[382162151,1756527021139,202.93,0.00024,2]
[382162232,1756527038098,-258.0,0.00024331,2]
[382162234,1756527038107,-159.79039188,0.00024342,2]
[382162236,1756527038117,-159.79039187,0.00024352,2]
[382162238,1756527038126,-159.79039187,0.00024363,2]
[382162240,1756527038135,-159.79039187,0.00024373,2]
[382162242,1756527038145,-2152.0,0.00024442,2]
[382162244,1756527038155,-1200.0,0.00024445,2]
[382162245,1756527038164,-300.0,0.00024453,2]
[382162246,1756527038174,-300.0,0.00024453,2]
[382162247,1756527038183,-12050.15526061,0.00024454,2]
[382162248,1756527038192,-2538.06669564,0.00024472,2]
[382162249,1756527038201,-500.31819818,0.00024473,2]
[382162250,1756527038211,-500.0,0.00024473,2]
[382162251,1756527038220,-500.0,0.00024473,2]
[382162252,1756527038230,-500.0,0.00024473,2]
[382162253,1756527038239,-500.0,0.00024473,2]
[382162254,1756527038248,-501.90810204,0.00024473,2]
[382162255,1756527038258,-500.0,0.00024473,2]
[382162256,1756527038267,-500.0,0.00024473,2]
[382162257,1756527038277,-500.0,0.00024473,2]
[382162258,1756527038286,-500.0,0.00024473,2]
[382162259,1756527038295,-502.20116784,0.00024473,2]
[382162260,1756527038305,-500.0,0.00024473,2]
[382162261,1756527038316,-535.82999307,0.00024473,2]
[382162262,1756527038325,-500.0,0.00024473,2]
[382162263,1756527038336,-277.88176164,0.00024473,2]
[382162264,1756527038345,-500.0,0.00024473,2]
[382162265,1756527038354,-500.0,0.00024473,2]
[382162266,1756527038363,-500.0,0.00024473,2]
[382162267,1756527038373,-501.31195499,0.00024473,2]
[382162268,1756527038383,-500.0,0.00024473,2]
[382162269,1756527038392,-500.0,0.00024473,2]
[382162270,1756527038401,-500.0,0.00024473,2]
[382162271,1756527038411,-502.82551765,0.00024473,2]
[382162272,1756527038420,-501.21865721,0.00024473,2]
[382162273,1756527038430,-501.74279141,0.00024473,2]
[382162274,1756527038439,-500.0,0.00024473,2]
[382162275,1756527038448,-500.4491363,0.00024473,2]
[382162276,1756527038458,-503.92401456,0.00024473,2]
[382162277,1756527038467,-501.19331251,0.00024473,2]
[382162278,1756527038476,-501.60924757,0.00024473,2]
[382162279,1756527038486,-500.0,0.00024473,2]
[382162280,1756527038495,-500.0,0.00024473,2]
[382162281,1756527038504,-500.58297378,0.00024473,2]
[382162282,1756527038514,-506.84425262,0.00024473,2]
[382162283,1756527038523,-520.22474796,0.00024473,2]
[382162284,1756527038533,-500.0,0.00024473,2]
[382162285,1756527038542,-503.78743952,0.00024473,2]
[382162286,1756527038551,-500.0,0.00024485,2]
[382162287,1756527038563,-519.08760809,0.00024485,2]
[382162288,1756527038572,-836.0,0.0002449,3]
[382162289,1756527038581,-418.0,0.0002449,3]
[382162290,1756527038591,-209.0,0.0002449,3]
[382162291,1756527038600,-627.03,0.0002449,3]
[382162292,1756527038610,-153.63869284,0.0002449,3]
[382162293,1756527038620,-151.0,0.0002449,3]
[382162294,1756527038630,-500.0,0.00024499,2]
[382162295,1756527038639,-367.01008358,0.00024499,2]
[382162296,1756527038648,-348.19377324,0.00024499,2]
[382162297,1756527038658,-225.65821769,0.00024499,2]
[382162298,1756527038667,-500.0,0.00024499,2]
[382162299,1756527038677,-500.0,0.00024499,2]
[382162300,1756527038687,-500.0,0.00024499,2]
[382162301,1756527038696,-500.0,0.00024499,2]
[382162302,1756527038706,-174.16038456,0.00024499,2]
[382162303,1756527038715,-502.46363489,0.00024499,2]
[382162304,1756527038725,-518.69307432,0.00024499,2]
[382162305,1756527038734,-500.0,0.00024499,2]
[382162306,1756527038744,-528.7906949,0.00024499,2]
[382162307,1756527038753,-500.0,0.00024499,2]
[382162308,1756527038762,-506.85846785,0.00024499,2]
[382162309,1756527038772,-500.0,0.00024499,2]
[382162310,1756527038781,-500.0,0.00024499,2]
[382162311,1756527038791,-525.92572483,0.00024499,2]
[382162312,1756527038800,-197.51770423,0.00024499,2]
[382162313,1756527038809,-500.0,0.00024499,2]
[382162314,1756527038819,-500.0,0.00024499,2]
[382162315,1756527038828,-400.0,0.00024499,2]
[382162316,1756527038837,-500.0,0.00024499,2]
[382162317,1756527038847,-367.96913567,0.00024499,2]
[382162318,1756527038856,-219.56135008,0.00024499,2]
[382162319,1756527038868,-500.0,0.00024499,2]
[382162320,1756527038877,-500.0,0.00024499,2]
[382162321,1756527038887,-618.2254242,0.00024499,2]
[382162322,1756527038896,-500.0,0.00024499,2]
[382162323,1756527038905,-251.83065181,0.00024499,2]
[382162324,1756527038915,-192.32289854,0.00024499,2]
[382162325,1756527038924,-195.6059565,0.00024499,2]
[382162326,1756527038934,-292.81046727,0.00024499,2]
[382162327,1756527038943,-500.0,0.00024499,2]
[382162328,1756527038953,-500.0,0.00024499,2]
[382162329,1756527038962,-641.06382875,0.00024499,2]
[382162330,1756527038971,-609.48805969,0.00024499,2]
[382162331,1756527038981,-151.0,0.00024499,2]
[382162332,1756527038990,-152.65524359,0.00024499,2]
[382162333,1756527038999,-151.0,0.00024499,2]
[382162334,1756527039009,-500.0,0.00024499,2]
[382162335,1756527039019,-500.0,0.00024499,2]
[382162336,1756527039028,-500.0,0.00024499,2]
[382162337,1756527039037,-500.0,0.00024499,2]
[382162338,1756527039047,-500.0,0.00024499,2]
[382162339,1756527039057,-588.94454495,0.00024499,2]
[382162340,1756527039067,-500.0,0.00024499,2]
[382162341,1756527039076,-500.0,0.00024499,2]
[382162342,1756527039086,-151.81389607,0.00024499,2]
[382162343,1756527039096,-196.94548854,0.00024499,2]
[382162344,1756527039106,-500.0,0.00024499,2]
[382162345,1756527039116,-151.0,0.00024499,2]
[382162346,1756527039126,-151.0,0.00024499,2]
[382162347,1756527039136,-151.0,0.00024499,2]
[382162348,1756527039146,-151.0,0.00024499,2]
[382162349,1756527039155,-152.05890476,0.00024499,2]
[382162350,1756527039165,-151.95403363,0.00024499,2]
[382162351,1756527039175,-151.0,0.00024499,2]
[382162352,1756527039186,-500.0,0.00024499,2]
[382162353,1756527039195,-151.0,0.00024499,2]
[382162354,1756527039205,-154.06718767,0.00024499,2]
[382162355,1756527039215,-151.0,0.00024499,2]
[382162356,1756527039224,-152.22796554,0.00024499,2]
[382162357,1756527039234,-361319.79759884,0.000245,2]
[382162636,1756527043040,-8680.20240116,0.000245,2]
[382162638,1756527043049,-2538.06669562,0.00024554,2]
[382162640,1756527043059,-2000.0,0.00024572,15]
[382162642,1756527043069,-2000.0,0.00024572,15]
[382162644,1756527043079,-2000.0,0.00024572,15]
[382162646,1756527043089,-2000.0,0.00024572,15]
[382162648,1756527043099,-1612.834669,0.00024572,15]
[382162650,1756527043109,-200.0,0.00024599,14]
[382162651,1756527043119,-300.0,0.00024599,17]
[382162653,1756527043129,-444.8714377,0.000246,2]
[382162655,1756527043139,-2496.24727049,0.00024601,2]
[382162658,1756527043148,-12547.0277685,0.00024601,2]
[382162660,1756527043158,-11078.50476049,0.00024601,2]
[382167938,1756527101820,203.57150608,0.000199,2]
[382168010,1756527143955,3000.0,0.0002341,2]
[382168011,1756527151330,-204.38038961,0.00024231,2]
[382168012,1756527271206,220.23746864,0.000199,2]
[382168013,1756527306454,-1200.0,0.00024372,2]
[382168014,1756527306708,-1966.5731596,0.00024373,2]
[382168015,1756527306815,-3933.1463192,0.00024373,2]
[382168016,1756527306960,-2133.7173616,0.00024373,2]
[382168017,1756527306988,-300.0,0.00024389,2]
[382168018,1756527307016,-300.0,0.00024389,2]
[382168019,1756527307045,-300.0,0.00024389,2]
[382168020,1756527307074,-300.0,0.00024389,2]
[382168021,1756527307102,-348.33,0.0002439,3]
[382168022,1756527307130,-174.17,0.0002439,3]
[382168023,1756527307158,-174.17,0.0002439,3]
[382168024,1756527307185,-528.7906949,0.00024399,2]
[382168025,1756527307216,-381.653887,0.00024399,2]
[382168026,1756527307371,-118.346113,0.00024399,2]
[382168027,1756527307400,-498.59107155,0.00024399,2]
[382168028,1756527307429,-500.0,0.00024399,2]
[382168029,1756527307459,-500.0,0.00024399,2]
[382168030,1756527307490,-500.0,0.00024399,2]
[382168031,1756527307517,-500.0,0.00024399,2]
[382168032,1756527307544,-545.71147747,0.00024399,2]
[382168033,1756527307571,-500.0,0.00024399,2]
[382168034,1756527307599,-618.2254242,0.00024399,2]
[382168035,1756527307626,-500.0,0.00024399,2]
[382168036,1756527307772,-500.0,0.00024399,2]
[382168037,1756527307802,-500.0,0.00024399,2]
[382168038,1756527307834,-500.0,0.00024399,2]
[382168039,1756527307863,-500.0,0.00024399,2]
[382168040,1756527307892,-500.0,0.00024399,2]
[382168041,1756527307920,-500.0,0.00024399,2]
[382168042,1756527307950,-500.0,0.00024399,2]
[382168043,1756527307979,-500.0,0.00024399,2]
[382168044,1756527308007,-500.0,0.00024399,2]
[382168045,1756527308034,-500.0,0.00024399,2]
[382168046,1756527308086,-500.0,0.00024399,2]
[382168047,1756527308115,-202.46442435,0.00024399,2]